[Event "*** Titled Tuesday Blitz"]
[Site "Chess.com"]
[Date "2020.10.20"]
[Round "8"]
[White "GalperinPlaton"]
[Black "RaunakSadhwani2005"]
[Result "1-0"]
[WhiteElo "2842"]
[BlackElo "2950"]
[TimeControl "180+1"]
[EndTime "11:36:13 PDT"]
[Termination "GalperinPlaton won by resignation"]

1. e4 {[%clk 0:03:00]} 1... e5 {[%clk 0:02:58.5]} 2. Nf3 {[%clk 0:03:00.4]} 2...
Nc6 {[%clk 0:02:58.7]} 3. Bb5 {[%clk 0:03:00.8]} 3... Nf6 {[%clk 0:02:59.1]} 4.
O-O {[%clk 0:02:58.8]} 4... Nxe4 {[%clk 0:02:59]} 5. d4 {[%clk 0:02:58.7]} 5...
Nd6 {[%clk 0:02:59]} 6. dxe5 {[%clk 0:02:59.1]} 6... Nxb5 {[%clk 0:02:58.4]} 7.
a4 {[%clk 0:02:59.7]} 7... Nbd4 {[%clk 0:02:48]} 8. Nxd4 {[%clk 0:02:59.6]} 8...
Nxd4 {[%clk 0:02:48.9]} 9. Qxd4 {[%clk 0:02:59.8]} 9... d5 {[%clk 0:02:47.5]}
10. Nc3 {[%clk 0:02:48.1]} 10... c6 {[%clk 0:02:47.6]} 11. a5 {[%clk 0:02:48]}
11... Bf5 {[%clk 0:02:45]} 12. Re1 {[%clk 0:02:44.5]} 12... Be7 {[%clk 0:02:40]}
13. e6 {[%clk 0:02:18.1]} 13... O-O {[%clk 0:02:29.3]} 14. exf7+ {[%clk
0:02:15.8]} 14... Rxf7 {[%clk 0:02:30.2]} 15. Bf4 {[%clk 0:02:14.9]} 15... Bxc2
{[%clk 0:02:21.9]} 16. Be5 {[%clk 0:02:09.9]} 16... Qd7 {[%clk 0:02:13.5]} 17.
b4 {[%clk 0:02:01.8]} 17... Raf8 {[%clk 0:02:09.2]} 18. f3 {[%clk 0:01:59]}
18... g5 {[%clk 0:01:40.7]} 19. Rac1 {[%clk 0:01:58.7]} 19... Bg6 {[%clk
0:01:40.3]} 20. b5 {[%clk 0:01:45]} 20... g4 {[%clk 0:01:05]} 21. f4 {[%clk
0:01:37.2]} 21... a6 {[%clk 0:00:43.9]} 22. bxc6 {[%clk 0:01:32.7]} 22... bxc6
{[%clk 0:00:44.2]} 23. Na4 {[%clk 0:01:32.6]} 23... h5 {[%clk 0:00:35.1]} 24.
Rc3 {[%clk 0:01:25.8]} 24... h4 {[%clk 0:00:27.9]} 25. Rec1 {[%clk 0:01:26.1]}
25... g3 {[%clk 0:00:22.4]} 26. hxg3 {[%clk 0:01:17.6]} 26... Qg4 {[%clk
0:00:20.9]} 27. Rxc6 {[%clk 0:01:03.9]} 27... Qxg3 {[%clk 0:00:16.6]} 28. f5
{[%clk 0:00:46.3]} 28... Bf6 {[%clk 0:00:04.1]} 29. Rxf6 {[%clk 0:00:44.1]}
29... Rxf6 {[%clk 0:00:04.4]} 30. Bxg3 {[%clk 0:00:43.9]} 1-0

[Event "*** Titled Tuesday Blitz"]
[Site "Chess.com"]
[Date "2020.10.20"]
[Round "8"]
[White "scarabee43"]
[Black "manitodeplomo"]
[Result "1-0"]
[WhiteElo "2508"]
[BlackElo "2658"]
[TimeControl "180+1"]
[EndTime "11:36:13 PDT"]
[Termination "scarabee43 won by checkmate"]

1. Nf3 {[%clk 0:03:00.9]} 1... g6 {[%clk 0:02:57.1]} 2. c4 {[%clk 0:03:01]} 2...
Bg7 {[%clk 0:02:57.6]} 3. d4 {[%clk 0:02:58.7]} 3... c5 {[%clk 0:02:55.1]} 4. d5
{[%clk 0:02:57.4]} 4... d6 {[%clk 0:02:55]} 5. Nc3 {[%clk 0:02:57.5]} 5... e6
{[%clk 0:02:55.2]} 6. e4 {[%clk 0:02:57.4]} 6... exd5 {[%clk 0:02:55.4]} 7. cxd5
{[%clk 0:02:57]} 7... a6 {[%clk 0:02:55.4]} 8. a4 {[%clk 0:02:56.4]} 8... Ne7
{[%clk 0:02:55.6]} 9. Be2 {[%clk 0:02:53.5]} 9... O-O {[%clk 0:02:55.6]} 10. O-O
{[%clk 0:02:53.4]} 10... Bg4 {[%clk 0:02:54.7]} 11. Nd2 {[%clk 0:02:51]} 11...
Bxe2 {[%clk 0:02:54.2]} 12. Qxe2 {[%clk 0:02:50.7]} 12... Nd7 {[%clk 0:02:54.2]}
13. Nc4 {[%clk 0:02:50]} 13... Ne5 {[%clk 0:02:47.1]} 14. Bf4 {[%clk 0:02:48.8]}
14... Nxc4 {[%clk 0:02:45]} 15. Qxc4 {[%clk 0:02:48.3]} 15... h6 {[%clk
0:02:38.7]} 16. Rfe1 {[%clk 0:02:43.9]} 16... g5 {[%clk 0:02:37.6]} 17. Bg3
{[%clk 0:02:43.8]} 17... Ng6 {[%clk 0:02:37.7]} 18. Qb3 {[%clk 0:02:36.5]} 18...
Qd7 {[%clk 0:02:35.8]} 19. Nd1 {[%clk 0:02:33.4]} 19... Rae8 {[%clk 0:02:24.5]}
20. f3 {[%clk 0:02:29.8]} 20... f5 {[%clk 0:02:19.5]} 21. Nc3 {[%clk 0:02:20.4]}
21... Bd4+ {[%clk 0:02:11.6]} 22. Bf2 {[%clk 0:02:17.9]} 22... Bxf2+ {[%clk
0:02:11.4]} 23. Kxf2 {[%clk 0:02:18.4]} 23... Ne5 {[%clk 0:02:10.6]} 24. Kg1
{[%clk 0:02:12.5]} 24... f4 {[%clk 0:02:08.5]} 25. h3 {[%clk 0:02:07.3]} 25...
h5 {[%clk 0:02:08.1]} 26. Nd1 {[%clk 0:01:59]} 26... Re7 {[%clk 0:02:03.7]} 27.
Nf2 {[%clk 0:01:59]} 27... Rg7 {[%clk 0:02:04.1]} 28. Nd3 {[%clk 0:01:55.4]}
28... Nxf3+ {[%clk 0:01:44.3]} 29. gxf3 {[%clk 0:01:54.7]} 29... g4 {[%clk
0:01:44.6]} 30. Kf2 {[%clk 0:01:49.4]} 30... gxf3 {[%clk 0:01:39.3]} 31. Rg1
{[%clk 0:01:48.9]} 31... Rg3 {[%clk 0:01:13.3]} 32. Nxf4 {[%clk 0:01:44.7]}
32... h4 {[%clk 0:01:13.5]} 33. Qxf3 {[%clk 0:01:34.6]} 33... Qh7 {[%clk
0:00:12.3]} 34. Rxg3+ {[%clk 0:01:30.2]} 34... hxg3+ {[%clk 0:00:12.5]} 35. Kxg3
{[%clk 0:01:26.5]} 35... Kh8 {[%clk 0:00:07.9]} 36. Rf1 {[%clk 0:01:21.6]} 36...
Rg8+ {[%clk 0:00:05.2]} 37. Kh2 {[%clk 0:01:21.9]} 37... Qh6 {[%clk 0:00:02.7]}
38. Rg1 {[%clk 0:01:19.8]} 38... Rxg1 {[%clk 0:00:01.5]} 39. Kxg1 {[%clk
0:01:19.4]} 39... Qg7+ {[%clk 0:00:02.4]} 40. Qg2 {[%clk 0:01:17.5]} 40... Qd4+
{[%clk 0:00:02.3]} 41. Kh1 {[%clk 0:01:16.7]} 41... Qd1+ {[%clk 0:00:01.7]} 42.
Kh2 {[%clk 0:01:17.2]} 42... Qxa4 {[%clk 0:00:02.4]} 43. Ne6 {[%clk 0:01:15.1]}
43... Qd1 {[%clk 0:00:01]} 44. Qg7# {[%clk 0:01:15.2]} 1-0

[Event "*** Titled Tuesday Blitz"]
[Site "Chess.com"]
[Date "2020.10.20"]
[Round "8"]
[White "ambaixador"]
[Black "Caterpiller35"]
[Result "0-1"]
[WhiteElo "2303"]
[BlackElo "2427"]
[TimeControl "180+1"]
[EndTime "11:36:14 PDT"]
[Termination "Caterpiller35 won by resignation"]

1. Nf3 {[%clk 0:03:00.9]} 1... Nf6 {[%clk 0:02:58]} 2. c4 {[%clk 0:03:00.9]}
2... e6 {[%clk 0:02:55.2]} 3. g3 {[%clk 0:03:00.6]} 3... b6 {[%clk 0:02:53.7]}
4. Bg2 {[%clk 0:03:00.6]} 4... Bb7 {[%clk 0:02:53.5]} 5. O-O {[%clk 0:03:01.5]}
5... c5 {[%clk 0:02:53.4]} 6. Nc3 {[%clk 0:02:58.7]} 6... Be7 {[%clk 0:02:53.3]}
7. a3 {[%clk 0:02:59.2]} 7... O-O {[%clk 0:02:53.1]} 8. Rb1 {[%clk 0:02:59.6]}
8... d6 {[%clk 0:02:51.5]} 9. b4 {[%clk 0:02:59.3]} 9... Nbd7 {[%clk 0:02:51.6]}
10. d3 {[%clk 0:02:59]} 10... Rc8 {[%clk 0:02:47.7]} 11. Bd2 {[%clk 0:02:59]}
11... Qc7 {[%clk 0:02:47.7]} 12. Qb3 {[%clk 0:02:54.7]} 12... Rfd8 {[%clk
0:02:46.1]} 13. b5 {[%clk 0:02:54.1]} 13... Qb8 {[%clk 0:02:45.5]} 14. a4 {[%clk
0:02:54.6]} 14... d5 {[%clk 0:02:42.7]} 15. a5 {[%clk 0:02:54.8]} 15... d4
{[%clk 0:02:42.5]} 16. Na4 {[%clk 0:02:47]} 16... e5 {[%clk 0:02:40.1]} 17. Ra1
{[%clk 0:02:34.4]} 17... h6 {[%clk 0:02:38.1]} 18. Qc2 {[%clk 0:02:10.1]} 18...
Bd6 {[%clk 0:02:36.2]} 19. Rfe1 {[%clk 0:02:03.6]} 19... Re8 {[%clk 0:02:35.9]}
20. e3 {[%clk 0:02:00.8]} 20... e4 {[%clk 0:02:24.9]} 21. Nh4 {[%clk 0:01:51]}
21... exd3 {[%clk 0:02:01.3]} 22. Qxd3 {[%clk 0:01:51.9]} 22... Bxg2 {[%clk
0:01:56.3]} 23. Kxg2 {[%clk 0:01:42.7]} 23... Qb7+ {[%clk 0:01:53.4]} 24. f3
{[%clk 0:01:42]} 24... Ne5 {[%clk 0:01:51.3]} 25. Qf1 {[%clk 0:01:42.1]} 25...
d3 {[%clk 0:01:24.1]} 26. Nb2 {[%clk 0:01:23.9]} 26... Rcd8 {[%clk 0:01:17.9]}
27. Ra3 {[%clk 0:01:02.6]} 27... g5 {[%clk 0:01:12.9]} 28. Nf5 {[%clk
0:01:01.6]} 28... g4 {[%clk 0:01:13]} 29. Nh4 {[%clk 0:00:31.2]} 29... gxf3+
{[%clk 0:01:08.4]} 30. Nxf3 {[%clk 0:00:32.1]} 30... Ne4 {[%clk 0:01:02.5]} 31.
Rd1 {[%clk 0:00:29]} 31... Ng5 {[%clk 0:00:59.4]} 32. e4 {[%clk 0:00:28.5]}
32... Ngxf3 {[%clk 0:00:54.6]} 33. Bxh6 {[%clk 0:00:26.5]} 33... Qxe4 {[%clk
0:00:52.1]} 34. Nxd3 {[%clk 0:00:20]} 34... Nd2+ {[%clk 0:00:49.4]} 35. Kg1
{[%clk 0:00:17.6]} 35... Nxf1 {[%clk 0:00:48.1]} 36. Rxf1 {[%clk 0:00:18.5]}
36... Nxd3 {[%clk 0:00:46.8]} 0-1

[Event "*** Titled Tuesday Blitz"]
[Site "Chess.com"]
[Date "2020.10.20"]
[Round "8"]
[White "Semetey"]
[Black "Anton_Demchenko"]
[Result "1-0"]
[WhiteElo "2536"]
[BlackElo "2798"]
[TimeControl "180+1"]
[EndTime "11:36:17 PDT"]
[Termination "Semetey won on time"]

1. d4 {[%clk 0:03:00.9]} 1... Nf6 {[%clk 0:02:59.8]} 2. c4 {[%clk 0:02:58.5]}
2... g6 {[%clk 0:02:56.8]} 3. Nc3 {[%clk 0:02:59.4]} 3... Bg7 {[%clk 0:02:57.4]}
4. Bg5 {[%clk 0:02:58.3]} 4... h6 {[%clk 0:02:56.9]} 5. Bh4 {[%clk 0:02:58.1]}
5... d6 {[%clk 0:02:53.1]} 6. e3 {[%clk 0:02:57.6]} 6... O-O {[%clk 0:02:49.2]}
7. Bd3 {[%clk 0:02:51.8]} 7... c5 {[%clk 0:02:47.5]} 8. Nf3 {[%clk 0:02:51.1]}
8... cxd4 {[%clk 0:02:46.8]} 9. exd4 {[%clk 0:02:50.4]} 9... Nc6 {[%clk
0:02:42.7]} 10. O-O {[%clk 0:02:46.6]} 10... Bg4 {[%clk 0:02:40.5]} 11. Be2
{[%clk 0:02:44.3]} 11... g5 {[%clk 0:02:41]} 12. Bg3 {[%clk 0:02:41.6]} 12...
Nh5 {[%clk 0:02:41.5]} 13. d5 {[%clk 0:02:35.5]} 13... Nxg3 {[%clk 0:02:41.7]}
14. fxg3 {[%clk 0:02:28.6]} 14... Bxf3 {[%clk 0:02:40.8]} 15. Rxf3 {[%clk
0:02:29.1]} 15... Ne5 {[%clk 0:02:26.9]} 16. Re3 {[%clk 0:02:04.4]} 16... Qb6
{[%clk 0:02:25.1]} 17. Qd2 {[%clk 0:02:03.8]} 17... Rac8 {[%clk 0:02:00.3]} 18.
b3 {[%clk 0:01:59.3]} 18... Ng6 {[%clk 0:01:34.8]} 19. Kh1 {[%clk 0:01:56.4]}
19... a6 {[%clk 0:01:18.4]} 20. Rf1 {[%clk 0:01:56.1]} 20... Qa5 {[%clk
0:01:12.2]} 21. Bg4 {[%clk 0:01:34.2]} 21... Rc7 {[%clk 0:01:10.2]} 22. Bf5
{[%clk 0:01:33.8]} 22... Ne5 {[%clk 0:01:01.7]} 23. Bb1 {[%clk 0:01:25.9]} 23...
Ng4 {[%clk 0:00:43]} 24. Ref3 {[%clk 0:01:13.6]} 24... b5 {[%clk 0:00:12.1]} 25.
Qc2 {[%clk 0:01:06.5]} 25... f5 {[%clk 0:00:10]} 26. Rxf5 {[%clk 0:01:06.7]}
26... Rxf5 {[%clk 0:00:10.1]} 27. Qxf5 {[%clk 0:01:05.9]} 27... Nf6 {[%clk
0:00:06.7]} 28. Ne4 {[%clk 0:01:05]} 28... bxc4 {[%clk 0:00:02.8]} 29. Qe6+
{[%clk 0:00:52.7]} 29... Kh8 {[%clk 0:00:01.9]} 30. Nxf6 {[%clk 0:00:52.3]}
30... Bxf6 {[%clk 0:00:02.8]} 31. Qf7 {[%clk 0:00:44.5]} 1-0

[Event "*** Titled Tuesday Blitz"]
[Site "Chess.com"]
[Date "2020.10.20"]
[Round "8"]
[White "Harsha_Bharathakoti"]
[Black "Carnivoras"]
[Result "1-0"]
[WhiteElo "2785"]
[BlackElo "2634"]
[TimeControl "180+1"]
[EndTime "11:36:18 PDT"]
[Termination "Harsha_Bharathakoti won by resignation"]

1. c4 {[%clk 0:03:00.9]} 1... c6 {[%clk 0:02:58]} 2. Nf3 {[%clk 0:02:55.4]} 2...
Nf6 {[%clk 0:02:57.2]} 3. Nc3 {[%clk 0:02:53]} 3... d5 {[%clk 0:02:57.7]} 4. e3
{[%clk 0:02:48.3]} 4... e6 {[%clk 0:02:35]} 5. b3 {[%clk 0:02:48]} 5... Nbd7
{[%clk 0:02:33.6]} 6. Bb2 {[%clk 0:02:48]} 6... Bd6 {[%clk 0:02:33.7]} 7. Qc2
{[%clk 0:02:48]} 7... O-O {[%clk 0:02:31.3]} 8. Be2 {[%clk 0:02:48.3]} 8... a6
{[%clk 0:02:27.9]} 9. Rg1 {[%clk 0:02:01]} 9... b5 {[%clk 0:02:04.6]} 10. g4
{[%clk 0:01:58.6]} 10... b4 {[%clk 0:01:17.4]} 11. g5 {[%clk 0:01:31]} 11...
bxc3 {[%clk 0:00:58.8]} 12. gxf6 {[%clk 0:01:29.5]} 12... cxd2+ {[%clk
0:00:43.6]} 13. Qxd2 {[%clk 0:01:16.2]} 13... Nxf6 {[%clk 0:00:44]} 14. Qc3
{[%clk 0:00:34.8]} 14... e5 {[%clk 0:00:28.5]} 15. Nxe5 {[%clk 0:00:34.8]} 15...
Ne4 {[%clk 0:00:25.4]} 16. Nxc6 {[%clk 0:00:35.1]} 16... Nxc3 {[%clk 0:00:21.6]}
17. Bxc3 {[%clk 0:00:31.9]} 17... Qe8 {[%clk 0:00:07.4]} 18. Rxg7+ {[%clk
0:00:27.7]} 18... Kh8 {[%clk 0:00:06.5]} 19. Rxf7+ {[%clk 0:00:22.2]} 19... Kg8
{[%clk 0:00:06.7]} 20. Rg7+ {[%clk 0:00:22.2]} 20... Kh8 {[%clk 0:00:07.1]} 21.
Re7+ {[%clk 0:00:22.8]} 21... Kg8 {[%clk 0:00:05.5]} 22. Rg7+ {[%clk 0:00:19.9]}
22... Kh8 {[%clk 0:00:05.8]} 23. Rg5+ {[%clk 0:00:16.7]} 1-0

[Event "*** Titled Tuesday Blitz"]
[Site "Chess.com"]
[Date "2020.10.20"]
[Round "8"]
[White "Das_Virus_2020"]
[Black "ShapkinAnatoliy"]
[Result "0-1"]
[WhiteElo "2425"]
[BlackElo "2643"]
[TimeControl "180+1"]
[EndTime "11:36:19 PDT"]
[Termination "ShapkinAnatoliy won by resignation"]

1. e4 {[%clk 0:03:00.9]} 1... e5 {[%clk 0:02:59.7]} 2. Nc3 {[%clk 0:02:58.4]}
2... Nf6 {[%clk 0:02:59.4]} 3. g3 {[%clk 0:02:58.1]} 3... d5 {[%clk 0:02:59.1]}
4. exd5 {[%clk 0:02:58.4]} 4... Nxd5 {[%clk 0:03:00]} 5. Bg2 {[%clk 0:02:58.7]}
5... Nf6 {[%clk 0:03:00.5]} 6. d3 {[%clk 0:02:53.4]} 6... h6 {[%clk 0:03:00.5]}
7. Nge2 {[%clk 0:02:53.1]} 7... Nc6 {[%clk 0:03:01.1]} 8. O-O {[%clk 0:02:53.3]}
8... Bc5 {[%clk 0:03:01.4]} 9. Ne4 {[%clk 0:02:42.2]} 9... Nxe4 {[%clk
0:02:59.4]} 10. dxe4 {[%clk 0:02:40.7]} 10... Qxd1 {[%clk 0:03:00.3]} 11. Rxd1
{[%clk 0:02:40.7]} 11... Bg4 {[%clk 0:02:57.1]} 12. Bf1 {[%clk 0:02:30.9]} 12...
Nd4 {[%clk 0:02:49.8]} 13. Nxd4 {[%clk 0:02:24.3]} 13... Bxd1 {[%clk 0:02:50.7]}
14. Nb5 {[%clk 0:02:23.5]} 14... O-O-O {[%clk 0:02:40.7]} 15. Bd3 {[%clk
0:02:22.8]} 15... c6 {[%clk 0:02:29.5]} 16. Nc3 {[%clk 0:02:21.3]} 16... Bg4
{[%clk 0:02:29.6]} 17. Kg2 {[%clk 0:02:20.3]} 17... Kc7 {[%clk 0:02:26.8]} 18.
h3 {[%clk 0:02:17.1]} 18... Be6 {[%clk 0:02:26.5]} 19. Bd2 {[%clk 0:02:15.4]}
19... Bc4 {[%clk 0:02:20.1]} 20. Na4 {[%clk 0:02:00.1]} 20... Bxd3 {[%clk
0:02:11.4]} 21. Nxc5 {[%clk 0:01:59.9]} 21... Bxc2 {[%clk 0:02:07.7]} 22. Bc3
{[%clk 0:01:57]} 22... Rhe8 {[%clk 0:02:06.4]} 23. Rc1 {[%clk 0:01:53.6]} 23...
Bd3 {[%clk 0:02:02.3]} 24. Kf3 {[%clk 0:01:53.4]} 24... b6 {[%clk 0:02:02.2]}
25. Nb3 {[%clk 0:01:49.8]} 25... Kb7 {[%clk 0:01:57.4]} 26. Nd2 {[%clk
0:01:47.9]} 26... f6 {[%clk 0:01:55.7]} 27. Kg2 {[%clk 0:01:38.1]} 27... c5
{[%clk 0:01:55.2]} 28. b3 {[%clk 0:01:30.6]} 28... Bb5 {[%clk 0:01:55.2]} 29. a4
{[%clk 0:01:26.3]} 29... Bc6 {[%clk 0:01:54.9]} 30. Kf3 {[%clk 0:01:19.4]} 30...
Rd3+ {[%clk 0:01:52.7]} 31. Ke2 {[%clk 0:01:19.2]} 31... Red8 {[%clk 0:01:53.6]}
32. f3 {[%clk 0:01:19]} 32... Kb8 {[%clk 0:01:45]} 33. Nc4 {[%clk 0:01:15.2]}
33... Bb7 {[%clk 0:01:45.2]} 34. Rc2 {[%clk 0:01:09.1]} 34... Ba6 {[%clk
0:01:44.9]} 35. Kf2 {[%clk 0:01:07.9]} 35... Bxc4 {[%clk 0:01:44.5]} 36. bxc4
{[%clk 0:01:08.8]} 36... Rd1 {[%clk 0:01:40.2]} 37. a5 {[%clk 0:01:09]} 37...
Kb7 {[%clk 0:01:38.8]} 38. axb6 {[%clk 0:01:08.8]} 38... axb6 {[%clk 0:01:39.7]}
39. h4 {[%clk 0:01:07.6]} 39... h5 {[%clk 0:01:36.1]} 40. Kg2 {[%clk 0:01:04.1]}
40... Rb1 {[%clk 0:01:30.4]} 41. Kf2 {[%clk 0:01:00.6]} 41... Rd3 {[%clk
0:01:26.3]} 42. Ke2 {[%clk 0:00:58.2]} 42... Rdd1 {[%clk 0:01:26.5]} 43. Bd2
{[%clk 0:00:56.6]} 43... Kc6 {[%clk 0:01:14]} 44. Kf2 {[%clk 0:00:49.4]} 44...
b5 {[%clk 0:01:09]} 45. cxb5+ {[%clk 0:00:49.5]} 45... Kxb5 {[%clk 0:01:09.9]}
46. Ke2 {[%clk 0:00:49.4]} 46... c4 {[%clk 0:01:10.3]} 47. Ra2 {[%clk
0:00:48.1]} 47... Rh1 {[%clk 0:01:07.6]} 48. Ra5+ {[%clk 0:00:38]} 48... Kb6
{[%clk 0:01:04.4]} 49. Rd5 {[%clk 0:00:35]} 49... Rh2+ {[%clk 0:00:55.3]} 0-1

[Event "*** Titled Tuesday Blitz"]
[Site "Chess.com"]
[Date "2020.10.20"]
[Round "8"]
[White "GMJustin"]
[Black "margarita_2703"]
[Result "0-1"]
[WhiteElo "2270"]
[BlackElo "2412"]
[TimeControl "180+1"]
[EndTime "11:36:20 PDT"]
[Termination "margarita_2703 won on time"]

1. e4 {[%clk 0:03:00.4]} 1... e5 {[%clk 0:02:54.5]} 2. f4 {[%clk 0:02:59.6]}
2... d5 {[%clk 0:02:52.7]} 3. exd5 {[%clk 0:02:57.4]} 3... exf4 {[%clk
0:02:50.6]} 4. Nf3 {[%clk 0:02:48.2]} 4... Be7 {[%clk 0:02:49.6]} 5. Bb5+ {[%clk
0:02:41.2]} 5... c6 {[%clk 0:02:41.8]} 6. dxc6 {[%clk 0:02:39.7]} 6... bxc6
{[%clk 0:02:40.5]} 7. Bc4 {[%clk 0:02:37.7]} 7... Bh4+ {[%clk 0:02:39.1]} 8. Kf1
{[%clk 0:02:21.9]} 8... Bg4 {[%clk 0:02:38.7]} 9. Bxf7+ {[%clk 0:02:13.8]} 9...
Kxf7 {[%clk 0:02:37]} 10. Ne5+ {[%clk 0:02:13.5]} 10... Kf8 {[%clk 0:02:25.1]}
11. Qxg4 {[%clk 0:02:09.8]} 11... Bf6 {[%clk 0:02:17.5]} 12. Qxf4 {[%clk
0:02:05.3]} 12... Qe7 {[%clk 0:02:10.3]} 13. d4 {[%clk 0:02:02.6]} 13... Na6
{[%clk 0:02:05.2]} 14. b3 {[%clk 0:01:30.1]} 14... Rd8 {[%clk 0:01:32.6]} 15.
Ba3 {[%clk 0:01:27.5]} 15... c5 {[%clk 0:01:30.6]} 16. Nc6 {[%clk 0:01:16.7]}
16... Qd6 {[%clk 0:01:21.9]} 17. Qxd6+ {[%clk 0:00:25]} 17... Rxd6 {[%clk
0:01:20.6]} 18. Na5 {[%clk 0:00:23.8]} 18... Rxd4 {[%clk 0:01:14.5]} 19. Nc3
{[%clk 0:00:11]} 19... Rf4+ {[%clk 0:01:13.5]} 20. Ke2 {[%clk 0:00:10.8]} 20...
Bxc3 {[%clk 0:01:13.3]} 21. Raf1 {[%clk 0:00:10.6]} 21... Rxf1 {[%clk
0:01:10.8]} 22. Rxf1+ {[%clk 0:00:10.8]} 22... Nf6 {[%clk 0:01:10.8]} 23. Nb7
{[%clk 0:00:10.2]} 23... Bb4 {[%clk 0:01:09.4]} 24. Bb2 {[%clk 0:00:09.7]} 24...
Ke7 {[%clk 0:00:59.6]} 25. a3 {[%clk 0:00:09.9]} 25... Rb8 {[%clk 0:00:59.1]}
26. axb4 {[%clk 0:00:08.7]} 26... Rxb7 {[%clk 0:00:58.8]} 27. bxc5 {[%clk
0:00:08.9]} 27... Nb4 {[%clk 0:00:54.7]} 28. c3 {[%clk 0:00:05.4]} 28... Nc6
{[%clk 0:00:50.6]} 29. b4 {[%clk 0:00:05.6]} 29... a5 {[%clk 0:00:48.2]} 30. Rf4
{[%clk 0:00:02.8]} 30... axb4 {[%clk 0:00:47.5]} 31. cxb4 {[%clk 0:00:03.1]}
31... Rxb4 {[%clk 0:00:47.3]} 32. Rf5 {[%clk 0:00:02.6]} 32... Rxb2+ {[%clk
0:00:45.4]} 33. Kf3 {[%clk 0:00:02.4]} 33... Nd4+ {[%clk 0:00:43.9]} 0-1

[Event "*** Titled Tuesday Blitz"]
[Site "Chess.com"]
[Date "2020.10.20"]
[Round "8"]
[White "Radzio1987"]
[Black "Barmen_EV"]
[Result "1-0"]
[WhiteElo "2793"]
[BlackElo "2520"]
[TimeControl "180+1"]
[EndTime "11:36:23 PDT"]
[Termination "Radzio1987 won on time"]

1. c4 {[%clk 0:02:57.9]} 1... e6 {[%clk 0:02:59.3]} 2. Nc3 {[%clk 0:02:57.2]}
2... d5 {[%clk 0:03:00.2]} 3. d4 {[%clk 0:02:57.1]} 3... Bb4 {[%clk 0:02:59.3]}
4. Nf3 {[%clk 0:02:52.7]} 4... Nf6 {[%clk 0:02:59]} 5. Bg5 {[%clk 0:02:52.1]}
5... h6 {[%clk 0:02:58.7]} 6. Bxf6 {[%clk 0:02:52.1]} 6... Qxf6 {[%clk
0:02:59.6]} 7. Qa4+ {[%clk 0:02:52.4]} 7... Nc6 {[%clk 0:02:59.4]} 8. e3 {[%clk
0:02:53]} 8... O-O {[%clk 0:02:59.1]} 9. Be2 {[%clk 0:02:52.6]} 9... Bd7 {[%clk
0:02:59.4]} 10. Qb3 {[%clk 0:02:49.5]} 10... dxc4 {[%clk 0:02:58.4]} 11. Qxc4
{[%clk 0:02:50.4]} 11... Qe7 {[%clk 0:02:53.3]} 12. a3 {[%clk 0:02:47.5]} 12...
Bd6 {[%clk 0:02:43.5]} 13. Nd2 {[%clk 0:02:46.4]} 13... a6 {[%clk 0:02:35.3]}
14. Nde4 {[%clk 0:02:40.6]} 14... e5 {[%clk 0:02:35.1]} 15. d5 {[%clk
0:02:32.9]} 15... Nd8 {[%clk 0:02:28.8]} 16. g4 {[%clk 0:02:20.7]} 16... b5
{[%clk 0:01:57.4]} 17. Qd3 {[%clk 0:02:07.1]} 17... Nb7 {[%clk 0:01:58.3]} 18.
h4 {[%clk 0:02:01.6]} 18... f5 {[%clk 0:01:27.7]} 19. gxf5 {[%clk 0:01:48]}
19... Bxf5 {[%clk 0:01:28.6]} 20. Qd1 {[%clk 0:01:46.2]} 20... b4 {[%clk
0:01:14.1]} 21. axb4 {[%clk 0:01:39.6]} 21... Bxb4 {[%clk 0:01:15]} 22. Bd3
{[%clk 0:01:33.1]} 22... Bxe4 {[%clk 0:00:57.6]} 23. Bxe4 {[%clk 0:01:30.4]}
23... Bxc3+ {[%clk 0:00:57.8]} 24. bxc3 {[%clk 0:01:30.2]} 24... Nd6 {[%clk
0:00:58.4]} 25. Bg6 {[%clk 0:01:23.7]} 25... Qf6 {[%clk 0:00:44.6]} 26. Qc2
{[%clk 0:01:23.6]} 26... e4 {[%clk 0:00:43.2]} 27. h5 {[%clk 0:01:23.1]} 27...
Qe5 {[%clk 0:00:26.6]} 28. Ra4 {[%clk 0:01:18.3]} 28... Qxd5 {[%clk 0:00:21]}
29. Rd4 {[%clk 0:01:10.8]} 29... Qe5 {[%clk 0:00:19.5]} 30. Bxe4 {[%clk
0:01:10.7]} 30... Rae8 {[%clk 0:00:16.1]} 31. Bg6 {[%clk 0:01:08.2]} 31... Re6
{[%clk 0:00:16.4]} 32. Qb3 {[%clk 0:01:03.7]} 32... Kh8 {[%clk 0:00:15.8]} 33.
Qd5 {[%clk 0:01:03.3]} 33... Nb5 {[%clk 0:00:07.5]} 34. Qxe5 {[%clk 0:01:02.3]}
34... Rxe5 {[%clk 0:00:08.4]} 35. Rc4 {[%clk 0:01:01.7]} 35... a5 {[%clk
0:00:05.8]} 36. Ke2 {[%clk 0:01:01.9]} 36... Ra8 {[%clk 0:00:02.9]} 37. Rd1
{[%clk 0:00:58.8]} 1-0